bitfinex/quotes_ETHUSD_20250318
["timestamp","ask_amount","ask_price","bid_price","bid_amount"]
[1742262064886,10.47132,1910.0,1909.6,5.23664]
[1742262065101,5.2356,1910.0,1909.6,5.23664]
[1742262065402,5.23511,1910.2,1909.6,5.77308132]
[1742262065570,5.23511,1910.2,1909.8,5.23608]
[1742262065767,10.47039,1910.2,1909.8,5.23608]
[1742262066203,5.23535,1910.1,1909.7,5.2362]
[1742262066695,5.23535,1910.1,1909.5,6.02726]
[1742262066696,4.64671032,1910.1,1909.5,6.02726]
[1742262066912,5.23644,1909.7,1909.4,5.072]
[1742262067061,5.23669,1909.6,1909.3,0.8169]
[1742262067265,10.47357,1909.6,1909.3,0.8169]
[1742262067512,5.23669,1909.6,1909.3,0.8169]
[1742262067816,5.23722,1909.5,1909.3,0.8169]
[1742262068116,5.23738,1909.4,1909.1,0.8169]
[1742262068326,5.23794,1909.2,1908.8,5.99835]
[1742262068485,5.2383,1909.1,1908.8,0.7596]
[1742262069121,10.47695,1909.0,1908.6,5.99878]
[1742262069293,11.524645,1909.0,1908.6,5.99878]
[1742262069478,5.23867,1908.9,1908.6,0.7596]
[1742262069907,5.23835,1909.0,1908.6,0.7596]
[1742262070109,10.4769,1909.0,1908.6,5.99902]
[1742262070331,5.23862,1908.9,1908.6,0.7596]
[1742262070494,5.23892,1908.8,1908.6,0.7596]
[1742262070692,5.23862,1908.9,1908.6,0.7596]
[1742262071104,5.23862,1908.9,1908.6,2.391284]
[1742262071505,5.23844,1909.0,1908.6,2.391284]
[1742262071912,10.47702,1909.0,1908.6,2.391284]
[1742262072123,5.23844,1909.0,1908.6,12.869944]
[1742262072308,5.23812,1909.1,1908.7,5.23915]
[1742262072614,5.23781,1909.2,1908.8,5.23876]
[1742262072912,5.23776,1909.3,1908.9,5.2386]
[1742262073507,5.23814,1909.1,1908.7,6.5260774]
[1742262073684,5.23814,1909.1,1908.7,6.5259274]
[1742262074594,5.23884,1908.9,1908.6,7.462284]
[1742262074915,10.47769,1908.9,1908.6,0.7596]
[1742262075115,5.23884,1908.9,1908.6,0.7596]
[1742262075512,5.23884,1908.9,1908.6,5.99901]
[1742262076027,5.23884,1908.9,1908.6,0.7596]
[1742262076892,5.23814,1909.1,1908.7,5.23912]
[1742262077213,5.23814,1909.1,1908.7,5.23892]
[1742262077527,5.23791,1909.2,1908.8,5.23886]
[1742262077828,5.2384,1909.0,1908.6,6.598825]
[1742262078122,5.23866,1908.9,1908.6,1.359515]
[1742262078325,10.4775,1908.9,1908.6,0.7596]
[1742262078495,5.23847,1909.0,1908.6,5.99893]
[1742262078694,5.23847,1909.0,1908.6,5.99884]
[1742262078918,5.23847,1909.0,1908.7,5.23914]
[1742262079120,5.23807,1909.1,1908.7,5.23914]
[1742262079292,5.23779,1909.2,1908.8,5.23887]
[1742262079691,10.47579,1909.2,1908.8,5.23887]
[1742262079925,5.23779,1909.2,1908.8,5.23887]
[1742262080231,5.23779,1909.2,1908.8,5.23872]
[1742262080439,10.47581,1909.2,1908.8,5.23872]
[1742262080735,10.47659,1909.1,1908.7,5.23916]
[1742262082031,5.23781,1909.2,1908.8,5.23888]
[1742262082192,11.25753,1909.3,1908.9,5.23851]
[1742262082396,11.25753,1909.3,1909.0,0.7597]
[1742262082598,5.23788,1909.2,1909.0,0.7597]
[1742262082829,5.23807,1909.1,1908.8,5.99858]
[1742262083189,5.23834,1909.0,1908.8,0.7597]
[1742262083396,5.23861,1908.9,1908.6,5.8736]
[1742262083615,5.23834,1909.0,1908.6,5.8736]
[1742262083616,5.23834,1909.0,1908.6,12.224246]
[1742262083812,5.23863,1908.9,1908.6,6.984916]
[1742262084130,5.2389,1908.8,1908.6,6.984916]
[1742262084430,0.7702,1909.0,1908.3,6.04475]
[1742262084728,5.23945,1908.6,1908.3,11.11575]
[1742262084892,5.23945,1908.6,1908.3,0.8046]
[1742262085095,0.26081194,1911.0,1909.1,0.2942]
[1742262085325,0.26081194,1911.0,1910.9,10.38207463]
[1742262085529,0.54621385,1911.3,1911.2,5.23221]
[1742262085825,0.26479793,1911.6,1911.2,10.231556]
[1742262086029,5.23205,1911.3,1910.9,5.52724]
[1742262086191,5.23254,1911.2,1910.9,0.2942]
[1742262086397,0.523254,1911.1,1910.9,0.2942]
[1742262086628,5.23313,1910.9,1910.5,0.8046]
[1742262086796,5.23485,1910.3,1910.1,0.8046]
[1742262086994,4.61369599,1910.2,1909.9,5.23562]
[1742262087299,5.2345,1910.4,1909.9,5.23562]
[1742262087494,6.05809,1910.4,1909.9,5.23572]
[1742262087699,11.2928,1910.4,1909.9,5.23569]
[1742262087917,6.05809,1910.4,1909.9,5.23568]
[1742262088095,6.05809,1910.4,1909.8,11.45368]
[1742262088296,5.2348,1910.3,1909.8,11.45368]
[1742262088495,0.52348,1910.2,1909.8,11.45368]
[1742262088731,0.52348,1910.2,1909.8,16.68965]
[1742262088991,0.52348,1910.2,1909.8,11.45357]
[1742262089330,0.52348,1910.2,1909.9,10.38457463]
[1742262089627,6.05799,1910.4,1909.9,5.14894463]
[1742262089927,5.23488,1910.3,1909.9,5.14894463]
[1742262090126,5.23488,1910.3,1909.9,10.38480463]
[1742262090429,0.82345,1910.4,1909.9,5.14894463]
[1742262090731,5.23548,1910.1,1909.8,0.8046]
[1742262090925,10.47148,1910.0,1909.5,17.42259328]
[1742262091127,5.23569,1910.0,1909.6,5.23655]
[1742262091829,5.23569,1910.0,1909.6,10.47306]
[1742262092225,5.23569,1910.0,1909.6,5.23651]
[1742262092413,1.047103,1910.0,1909.6,5.016582]
[1742262092619,10.47093,1910.1,1909.7,5.23635]
[1742262093227,5.23534,1910.1,1909.7,5.23635]
[1742262093625,10.47087,1910.1,1909.7,5.23635]
[1742262093836,10.47086,1910.1,1909.7,5.23635]
[1742262094135,5.23565,1910.0,1909.7,5.23635]
[1742262094323,6.282749,1910.0,1909.7,5.23635]
[1742262094522,6.282749,1910.0,1909.6,5.23659]
[1742262094737,11.518559,1910.0,1909.6,5.23659]
[1742262095037,1.047099,1910.0,1909.5,0.81]
[1742262095243,5.23624,1909.8,1909.4,5.23721]
[1742262095537,5.23621,1909.8,1909.4,5.23721]
[1742262095828,5.23621,1909.8,1909.4,10.47424]
[1742262096035,5.23621,1909.8,1909.3,10.62342]
[1742262096230,5.23625,1909.8,1909.4,5.23714]
[1742262096435,6.01224,1910.0,1909.6,5.23652]
[1742262096640,5.23598,1909.9,1909.5,5.23686]
[1742262096802,5.23598,1909.9,1909.5,5.23685]
[1742262097131,5.23598,1909.9,1909.5,10.47371]
[1742262097339,5.386,1910.2,1909.5,10.47371]
[1742262097340,10.62131,1910.2,1909.6,5.14894463]
[1742262097501,0.8314,1910.3,1909.8,5.14894463]
[1742262097706,5.23452,1910.4,1910.0,5.23559]
[1742262097914,0.8301,1910.6,1909.8,5.91274463]
[1742262098111,10.4699,1910.3,1909.9,5.2357]
[1742262098331,5.23507,1910.2,1909.8,5.99989]
[1742262098639,5.23542,1910.1,1909.8,0.7638]
[1742262099132,5.23562,1910.0,1909.7,5.383]
[1742262099433,5.23573,1910.0,1909.7,5.383]
[1742262099801,5.23532,1910.1,1909.5,6.00074]
[1742262100001,10.47144,1910.0,1909.6,5.2365]
[1742262100207,1.047144,1910.0,1909.6,5.2365]
[1742262100520,5.23507,1910.2,1909.7,5.2364]
[1742262100725,5.23588,1909.9,1909.5,11.38074]
[1742262100924,10.47135,1910.0,1909.6,5.23668]
[1742262101124,5.23561,1910.0,1909.6,5.23668]
[1742262101737,10.47144,1910.0,1909.6,5.23668]
[1742262101933,11.518584,1910.0,1909.6,5.23668]
[1742262102105,6.282754,1910.0,1909.5,11.38074]
[1742262102305,5.23601,1909.9,1909.5,6.1438]
[1742262102532,5.23643,1909.7,1909.5,0.7638]
[1742262102732,5.23643,1909.7,1909.4,5.368]
[1742262103325,5.23643,1909.7,1909.3,5.366]
[1742262103526,5.23697,1909.5,1909.3,5.366]
[1742262103711,5.23697,1909.5,1909.2,6.01386]
[1742262103916,5.23697,1909.5,1909.2,6.1411]
[1742262104501,5.23697,1909.5,1909.2,0.7761]
[1742262104701,5.23697,1909.5,1909.2,11.37585]
[1742262104908,5.2367,1909.6,1909.2,11.86358964]
[1742262105102,5.23637,1909.8,1909.4,5.23715]
[1742262105406,5.760007,1909.8,1909.4,5.23715]
[1742262105607,5.23653,1909.7,1909.3,5.23743]
[1742262105807,5.23674,1909.6,1909.3,5.23743]
[1742262107217,10.47317,1909.7,1909.3,5.23743]
[1742262107418,5.23674,1909.6,1909.3,5.23741]
[1742262107806,5.23674,1909.6,1909.2,11.3758]
[1742262108148,5.23738,1909.4,1909.2,5.346]
[1742262108324,10.47413,1909.5,1909.2,5.346]
[1742262108524,5.23697,1909.5,1909.2,5.346]
[1742262108708,5.23773,1909.3,1909.1,0.78094474]
[1742262109109,5.23779,1909.2,1909.1,0.78094474]
[1742262109347,6.285342,1909.2,1909.1,0.78094474]
[1742262109546,5.23808,1909.1,1908.8,1.26943355]
[1742262110356,5.23818,1909.1,1908.8,1.26943355]
[1742262111761,5.2384,1909.0,1908.8,1.26943355]
[1742262111910,5.23818,1909.1,1908.7,5.72751881]
[1742262112108,10.47648,1909.1,1908.7,5.72751881]
[1742262112309,5.23845,1909.0,1908.7,0.48848881]
[1742262112580,10.47698,1909.0,1908.7,0.48848881]
[1742262112755,5.23878,1908.9,1908.7,0.48848881]
[1742262113052,5.23889,1908.8,1908.7,0.48848881]
[1742262113526,5.23916,1908.7,1908.6,0.48848881]
[1742262114257,11.15300463,1908.7,1908.6,0.48848881]
[1742262114555,14.15300463,1908.7,1908.6,0.48848881]
[1742262114712,16.70352309,1908.7,1908.6,0.48848881]
[1742262114912,5.24054,1908.2,1908.1,0.1134553]
[1742262115427,5.99364,1908.2,1908.1,0.1134553]
[1742262116220,8.99364,1908.2,1908.1,0.1134553]
[1742262119060,5.24036,1908.3,1908.1,0.1134553]
[1742262119246,5.24054,1908.2,1908.1,0.1134553]
[1742262120236,0.7769,1908.4,1908.1,0.1134553]
[1742262120467,5.24041,1908.3,1908.1,0.1134553]
[1742262120841,5.23999,1908.4,1908.1,0.1134553]
[1742262121352,5.23899,1908.8,1908.1,1.17298483]
[1742262121552,5.23898,1908.8,1908.4,5.23997]
[1742262122356,5.23898,1908.8,1908.4,5.23979]
[1742262122549,9.05335,1909.0,1908.3,6.131]
[1742262122874,5.23889,1908.8,1908.3,11.37124]
[1742262123172,10.47801,1908.8,1908.4,5.23985]
[1742262123475,5.23889,1908.8,1908.4,5.23985]
[1742262123773,10.47799,1908.8,1908.4,5.23985]
[1742262124159,3.905335,1908.9,1908.3,0.799]
[1742262124368,3.905335,1908.9,1908.1,1.17298483]
[1742262124369,5.24008,1908.4,1908.1,0.9235553]
[1742262124659,6.05715,1908.6,1908.1,0.9235553]
[1742262124839,5.24043,1908.3,1908.1,0.1134553]
[1742262125238,5.24054,1908.2,1908.1,0.1134553]
[1742262126954,8.24054,1908.2,1908.1,0.1134553]
[1742262127144,15.677637,1908.2,1908.1,0.1134553]
[1742262127751,16.458927,1908.2,1908.1,0.1134553]
[1742262129382,6.00299,1908.0,1907.9,0.005]
[1742262129582,11.93322463,1908.0,1907.9,0.005]
[1742262129749,13.95063809,1908.0,1907.9,0.005]
[1742262130150,16.95063809,1908.0,1907.9,0.005]
[1742262130576,8.24136,1907.9,1907.8,0.005]
[1742262131182,10.35515,1907.9,1907.8,1e-05]
[1742262131397,9.02468,1907.6,1907.5,8e-07]
[1742262131600,21.71158263,1907.6,1907.5,8e-07]
[1742262132397,10.450138,1907.6,1907.5,8e-07]
[1742262132588,9.02347,1907.6,1907.5,8e-07]
[1742262133298,14.17241463,1907.6,1907.5,8e-07]
[1742262137296,14.99011463,1907.6,1907.5,8e-07]
[1742262138419,34.51330088,1907.6,1907.5,8e-07]
[1742262138574,39.02303097,1907.6,1907.5,8e-07]
[1742262140357,5.2451,1906.6,1906.1,0.38990457]
[1742262140641,5.24497,1906.6,1906.2,6.00163]
[1742262140826,5.24497,1906.6,1906.3,0.600163]
[1742262141026,0.8133,1907.1,1906.3,5.24576]
[1742262141233,5.24453,1906.8,1906.5,0.7556]
[1742262141433,10.48916,1906.8,1906.5,0.7556]
[1742262141629,10.48849,1906.9,1906.5,6.00076]
[1742262141829,5.24412,1906.9,1906.5,0.7556]
[1742262142031,3.0,1907.1,1906.5,0.7556]
[1742262142230,5.24395,1907.0,1906.6,5.24472]
[1742262142441,5.24413,1906.9,1906.7,0.524472]
[1742262142623,5.24413,1906.9,1906.5,6.00074]
[1742262142820,5.24395,1907.0,1906.5,0.7556]
[1742262142821,5.24492,1906.7,1906.5,0.7556]
[1742262143019,5.24493,1906.6,1906.5,0.7556]
[1742262143430,5.24521,1906.5,1906.4,0.4874305]
[1742262143867,6.02577,1906.8,1906.4,0.4874305]
[1742262144148,6.02568,1906.8,1906.4,5.24526]
[1742262144349,0.78129,1906.8,1906.3,0.7921]
[1742262144555,5.24511,1906.6,1906.3,0.7921]
[1742262144757,5.24532,1906.5,1906.3,0.7921]
[1742262145242,5.24499,1906.6,1906.3,0.7921]
[1742262145640,0.78129,1906.8,1906.4,5.24526]
[1742262145950,5.374,1907.4,1906.7,5.24446]
[1742262146253,10.48699,1907.2,1906.8,6.0158]
[1742262146441,10.48696,1907.2,1906.8,6.0158]
[1742262146641,5.24358,1907.1,1906.8,0.7715]
[1742262146837,5.24346,1907.2,1906.8,0.7715]
[1742262147049,5.24369,1907.1,1906.8,0.7715]
[1742262147561,5.2433,1907.2,1906.8,11.861642]
[1742262147878,8.2431,1907.3,1906.9,5.2441]
[1742262148035,5.24329,1907.2,1906.9,5.2441]
[1742262148235,5.24329,1907.2,1906.8,6.617362]
[1742262148420,10.48626,1907.3,1906.9,5.2441]
[1742262148621,5.2431,1907.3,1906.9,6.4302452]
[1742262148875,10.48626,1907.3,1906.9,6.4302452]
[1742262149150,3.0,1907.4,1906.8,0.7715]
[1742262149368,5.24405,1907.0,1906.8,0.7715]
[1742262150054,5.24357,1907.1,1906.8,0.7715]
[1742262150252,6.0243,1907.3,1906.8,0.7715]
[1742262150253,5.24411,1906.9,1906.8,0.7715]
[1742262150441,5.24411,1906.9,1906.5,11.40465]
[1742262150646,5.24411,1906.9,1906.5,12.545115]
[1742262150846,5.24388,1907.0,1906.6,5.24481]
[1742262151156,5.24364,1907.1,1906.7,5.24464]
[1742262151358,5.24364,1907.1,1906.8,0.8057]
[1742262151854,6.14329,1907.3,1906.8,0.8057]
[1742262152019,5.24375,1907.1,1906.8,0.8057]
[1742262152224,5.24411,1906.9,1906.8,0.8057]
[1742262153268,5.24464,1906.8,1906.5,8.04902011]
[1742262153565,5.24464,1906.8,1906.5,6.90855511]
[1742262153726,5.24461,1906.8,1906.5,6.90855511]
[1742262153921,5.24493,1906.6,1906.5,1.54655511]
[1742262154452,5.24493,1906.6,1906.5,0.77975511]
[1742262154756,5.24548,1906.4,1906.3,0.7907]
[1742262155653,10.49054,1906.5,1906.3,0.7907]
[1742262155862,11.37845,1906.9,1906.3,0.7907]
[1742262156156,5.24466,1906.7,1906.3,0.7907]
[1742262156358,5.24504,1906.6,1906.3,0.7907]
[1742262156853,10.49018,1906.6,1906.3,0.7907]
[1742262157046,12.5763408,1906.9,1906.3,0.7907]
[1742262157047,17.72528543,1906.9,1906.3,0.7907]
[1742262157426,5.24548,1906.4,1906.3,0.7907]
[1742262158068,5.24548,1906.4,1906.3,1.28085689]
[1742262158265,5.24522,1906.5,1906.3,1.28085689]
[1742262158471,5.24548,1906.4,1906.3,1.28085689]
[1742262158853,5.24523,1906.5,1906.3,1.28085689]
[1742262159152,10.49068,1906.5,1906.3,1.28085689]
[1742262159774,5.24548,1906.4,1906.3,0.7907]
[1742262159969,5.24529,1906.5,1906.3,0.7907]
[1742262160147,5.24496,1906.6,1906.3,0.7907]
[1742262160351,5.24476,1906.7,1906.3,7.175391]
[1742262160547,0.600858,1907.0,1906.3,1.929671]
[1742262160774,5.24441,1906.8,1906.4,5.24532]
[1742262161072,5.24481,1906.7,1906.4,0.49070179]
[1742262161254,5.24515,1906.6,1906.4,0.88326322]
[1742262161460,5.24521,1906.5,1906.4,0.88326322]
[1742262161755,5.24515,1906.6,1906.4,0.88326322]
[1742262162072,5.2447,1906.7,1906.4,0.88326322]
[1742262162252,5.2447,1906.7,1906.4,6.12865322]
[1742262162453,5.2447,1906.7,1906.4,5.73609179]
[1742262162653,5.24413,1906.9,1906.5,5.24507]
[1742262162872,5.24447,1906.8,1906.4,6.42253718]
[1742262163076,5.24516,1906.6,1906.4,1.17723718]
[1742262163377,5.24516,1906.6,1906.2,10.49173]
[1742262163579,5.24467,1906.7,1906.3,5.24576]
[1742262164089,5.24467,1906.7,1906.5,1.19165275]
[1742262164672,3.0,1907.0,1906.5,1.19165275]
[1742262164874,5.24467,1906.7,1906.5,1.19165275]
[1742262165171,5.24493,1906.6,1906.5,0.39295275]
[1742262165379,0.524467,1906.7,1906.3,5.35]
[1742262165567,5.24478,1906.7,1906.3,10.59563]
[1742262165976,5.24478,1906.7,1906.4,5.24547]
[1742262166573,5.24446,1906.8,1906.4,10.49084]
[1742262166801,5.24446,1906.8,1906.4,10.49068]
[1742262166949,5.24478,1906.7,1906.3,10.59556]
[1742262167149,5.24451,1906.8,1906.4,6.03091]
[1742262167549,4.65903376,1906.7,1906.3,5.35]
[1742262167749,10.49086,1906.5,1906.3,5.35]
[1742262168145,5.24543,1906.5,1906.3,5.35]
[1742262168353,10.4901,1906.6,1906.3,5.35]
[1742262168691,10.49014,1906.6,1906.3,5.35]
[1742262168993,5.24474,1906.7,1906.3,10.59561]
[1742262169350,5.24531,1906.5,1906.3,5.35]
[1742262169548,5.24531,1906.5,1906.2,0.7856]
[1742262169750,5.2456,1906.4,1906.2,0.7856]
[1742262170203,10.4913,1906.4,1906.2,0.7856]
[1742262170355,5.24576,1906.3,1906.2,0.7856]
[1742262171501,5.24576,1906.3,1905.8,6.0326]
[1742262171502,5.2461,1906.2,1905.8,6.0326]
[1742262171666,5.24578,1906.3,1905.8,6.03258]
[1742262171990,5.24617,1906.2,1905.8,6.03254]
[1742262172153,5.24617,1906.2,1905.9,0.39304592]
[1742262172659,5.24617,1906.2,1905.9,5.63986592]
[1742262172980,5.24523,1906.5,1906.2,0.8031]
[1742262173482,5.24564,1906.4,1906.2,0.8031]
[1742262173683,5.24496,1906.6,1906.2,6.04912]
[1742262173979,5.24467,1906.7,1906.3,5.24548]
[1742262174379,5.24467,1906.7,1906.3,10.49112]
[1742262174586,5.24467,1906.7,1906.3,11.620542]
[1742262174955,5.24448,1906.8,1906.4,5.24541]
[1742262175156,5.24362,1907.1,1906.8,5.2443]
[1742262175374,5.24362,1907.1,1906.7,5.24446]
[1742262175375,5.24362,1907.1,1906.9,0.7554]
[1742262176052,5.24411,1906.9,1906.7,0.7625]
[1742262176477,10.48841,1906.9,1906.7,0.7625]
[1742262176876,5.24438,1906.8,1906.7,0.7625]
[1742262177150,5.24493,1906.6,1906.4,0.8185]
[1742262177353,5.24469,1906.7,1906.4,0.8185]
[1742262177553,10.48955,1906.7,1906.4,0.8185]
[1742262177852,5.24469,1906.7,1906.4,0.8185]
[1742262178053,5.2444,1906.8,1906.4,6.06392]
[1742262178267,6.02513,1907.0,1906.5,10.4901]
[1742262178481,5.24384,1907.0,1906.6,5.24484]
[1742262178680,5.24415,1906.9,1906.6,5.24484]
[1742262178988,5.24384,1907.0,1906.6,5.24484]
[1742262179188,5.24384,1907.0,1906.6,5.24479]
[1742262179489,10.48791,1907.0,1906.6,5.24479]
[1742262179688,5.24424,1906.9,1906.4,11.8312387]
[1742262179892,5.24474,1906.7,1906.4,0.8185]
[1742262180293,5.24441,1906.8,1906.4,6.06379]
[1742262180464,5.24451,1906.8,1906.4,6.06394]
[1742262180672,5.24514,1906.6,1906.4,0.8185]
[1742262180859,5.769594,1906.6,1906.4,0.8185]
[1742262181195,1.58919,1906.8,1906.1,0.831]
[1742262181370,5.24466,1906.7,1906.1,11.32337]
[1742262181693,5.24538,1906.5,1906.1,6.07729]
[1742262181988,5.2445,1906.8,1906.4,5.24521]
[1742262182160,10.48908,1906.8,1906.4,5.24535]
[1742262182364,5.24476,1906.7,1906.4,5.24535]
[1742262182876,5.24383,1907.0,1906.4,0.601285]
[1742262183083,5.24412,1906.9,1906.6,0.795]
[1742262183591,3.0,1907.2,1906.6,6.03977]
[1742262183777,5.24339,1907.2,1906.8,5.24427]
[1742262184089,5.24372,1907.1,1906.8,5.24438]
[1742262184262,5.24291,1907.4,1907.0,5.24361]
[1742262184463,10.48591,1907.4,1907.0,5.24361]
[1742262184688,5.24273,1907.4,1906.9,0.795]
[1742262184883,5.24371,1907.1,1906.8,5.35]
[1742262185056,5.24393,1907.0,1906.8,5.35]
[1742262185460,10.48692,1907.2,1906.8,10.59435]
[1742262185685,5.24357,1907.1,1906.8,5.35]
[1742262186191,5.24246,1907.5,1907.0,6.03867]
[1742262186361,5.24303,1907.3,1907.0,0.795]
[1742262186560,5.24356,1907.1,1907.0,0.795]
[1742262186889,5.24307,1907.3,1907.0,0.795]
[1742262187491,5.24408,1907.0,1906.8,0.7721]
[1742262187657,5.24421,1906.9,1906.6,6.1311]
[1742262187862,5.24357,1907.1,1906.6,6.1311]
[1742262188091,5.24385,1907.0,1906.6,6.1311]
[1742262188289,5.24362,1907.1,1906.7,5.24465]
[1742262188493,5.24372,1907.1,1906.7,5.24466]
[1742262188693,5.24372,1907.1,1906.7,10.48915]
[1742262188863,5.24333,1907.2,1906.8,5.24438]
[1742262189059,5.24274,1907.4,1907.0,5.24377]
[1742262189280,8.24305,1907.3,1906.9,6.01602]
[1742262189663,13.48627,1907.3,1906.9,6.01602]
[1742262190171,5.24331,1907.2,1906.9,0.7721]
[1742262191291,5.24369,1907.1,1906.9,0.7721]
[1742262191496,4.348627,1907.3,1906.7,0.7721]
[1742262191497,5.24383,1907.0,1906.7,0.7721]
[1742262191695,10.48786,1907.0,1906.7,6.1371]
[1742262191862,5.24369,1907.1,1906.7,6.1371]
[1742262192067,5.24397,1907.0,1906.7,6.1371]
[1742262193088,6.0568,1907.2,1906.7,11.38173]
[1742262193272,10.48676,1907.2,1906.8,5.2443]
[1742262193479,5.2433,1907.2,1906.8,5.2443]
[1742262193864,10.48684,1907.2,1906.8,5.2443]
[1742262194089,6.292394,1907.1,1906.7,11.38173]
[1742262194375,5.244,1907.0,1906.7,6.1371]
[1742262194900,5.24468,1906.7,1906.5,0.7767]
[1742262195199,5.2444,1906.8,1906.3,6.1427]
[1742262195402,5.2444,1906.8,1906.4,5.24537]
[1742262195604,5.24411,1906.9,1906.5,5.24505]
[1742262195964,5.24411,1906.9,1906.3,6.75697]
[1742262195965,11.658404,1907.1,1906.6,5.2447]
[1742262196165,1.048684,1907.1,1906.9,5.24409]
[1742262196371,1.348627,1907.3,1906.9,5.24396]
[1742262196604,1.348627,1907.3,1907.0,5.24382]
[1742262196780,8.24276,1907.4,1907.0,5.24382]
[1742262196983,8.24276,1907.4,1907.1,0.7553]
[1742262197581,5.24248,1907.5,1907.1,5.99863]
[1742262197794,5.24248,1907.5,1907.1,0.7553]
[1742262198106,5.2428,1907.4,1907.1,0.7553]
[1742262198271,11.31007,1907.4,1907.1,0.7553]
[1742262198467,5.24311,1907.3,1907.1,0.7553]
[1742262199015,5.24318,1907.3,1907.1,0.7553]
[1742262199805,0.82428,1907.4,1907.1,5.99886]
[1742262201005,8.24249,1907.5,1907.1,0.7553]
[1742262201203,5.9215767,1907.8,1907.1,0.7553]
[1742262201391,5.24328,1907.2,1907.1,0.7553]
[1742262201596,5.24328,1907.2,1906.9,5.349]
[1742262201774,5.24328,1907.2,1906.9,5.2441]
[1742262201976,5.24328,1907.2,1906.9,11.08040609]
[1742262202306,5.24328,1907.2,1906.9,11.07940609]
[1742262202487,5.24328,1907.2,1906.9,11.07840609]
[1742262202810,6.00353,1907.4,1907.0,5.24373]
[1742262203000,5.24283,1907.4,1907.1,5.2435]
[1742262203312,10.48573,1907.4,1907.0,5.24373]
[1742262203611,10.48577,1907.4,1907.0,5.24373]
[1742262203793,5.24283,1907.4,1907.0,5.24373]
[1742262203997,0.524283,1907.4,1906.9,10.5881]
[1742262204198,5.2429,1907.4,1906.9,10.58798]
[1742262204398,5.24304,1907.3,1907.0,5.24377]
[1742262204709,5.24371,1907.1,1906.9,5.334]
[1742262204899,5.24371,1907.1,1906.8,0.7958]
[1742262205293,5.24387,1907.0,1906.8,0.7958]
[1742262205493,5.24389,1907.0,1906.8,0.7958]
[1742262205695,5.24389,1907.0,1906.7,5.333]
[1742262205905,5.24357,1907.1,1906.7,5.333]
[1742262206207,5.24357,1907.1,1906.7,10.57756]
[1742262206208,11.093957,1907.1,1906.7,10.57756]
[1742262206481,5.24367,1907.1,1906.7,5.333]
[1742262206620,5.2444,1906.8,1906.4,6.00652]
[1742262206786,5.2444,1906.8,1906.5,10.57821]
[1742262206988,5.24412,1906.9,1906.5,10.57821]
[1742262207213,5.24412,1906.9,1906.5,10.57804]
[1742262207423,5.24389,1907.0,1906.6,5.24483]
[1742262207798,5.24389,1907.0,1906.6,10.48964]
[1742262208103,5.24329,1907.2,1906.8,5.24416]
[1742262208723,5.24329,1907.2,1906.9,5.24405]
[1742262208724,3.0,1907.2,1906.9,5.24405]
[1742262208886,5.24309,1907.3,1906.9,10.48806]
[1742262209092,11.39836,1907.4,1907.0,6.00513]
[1742262209093,5.24276,1907.4,1907.0,6.00513]
[1742262209713,5.24275,1907.4,1907.0,0.7613]
[1742262209909,10.48652,1907.3,1907.0,0.7613]
[1742262210113,5.24332,1907.2,1906.9,5.334]
[1742262210540,5.24291,1907.4,1907.0,5.24378]
[1742262210842,5.24301,1907.3,1906.9,5.334]
[1742262211020,5.24338,1907.2,1906.9,5.334]
[1742262211221,10.48688,1907.2,1906.9,5.334]
[1742262211417,5.24338,1907.2,1906.9,5.334]
[1742262212914,10.48692,1907.2,1906.9,5.334]
[1742262213113,5.24383,1907.0,1906.6,5.24478]
[1742262213317,5.24383,1907.0,1906.6,11.36468]
[1742262213706,10.48787,1907.0,1906.6,11.36468]
[1742262214108,5.24414,1906.9,1906.6,11.36468]
[1742262214321,5.24385,1907.0,1906.6,13.12254964]
[1742262214626,5.24385,1907.0,1906.6,7.78554964]
[1742262214819,5.24385,1907.0,1906.6,13.03036964]
[1742262215029,5.24385,1907.0,1906.7,5.2446]
[1742262215223,5.24358,1907.1,1906.7,5.2446]
[1742262215520,10.48735,1907.1,1906.7,5.2446]
[1742262216711,5.24385,1907.0,1906.7,5.2446]
[1742262217121,10.48789,1907.0,1906.6,7.78554964]
[1742262217326,5.24385,1907.0,1906.6,7.78554964]
[1742262217527,5.24418,1906.9,1906.6,2.54077964]
[1742262217702,5.24444,1906.8,1906.6,0.7829]
[1742262219131,5.24386,1907.0,1906.6,6.02766]
[1742262219431,6.02469,1907.2,1906.8,5.24429]
[1742262219634,11.2682,1907.2,1906.8,5.24424]
[1742262220133,5.24356,1907.1,1906.8,5.24424]
[1742262220303,5.24356,1907.1,1906.8,6.293129]
[1742262220605,10.48791,1907.0,1906.6,6.02774]
[1742262220805,5.24417,1906.9,1906.6,0.7829]
[1742262223109,5.24392,1907.0,1906.7,5.24449]
[1742262223319,5.24392,1907.0,1906.6,0.7829]
[1742262223320,5.24392,1907.0,1906.6,6.02774]
[1742262223517,5.24423,1906.9,1906.6,0.7829]
[1742262223715,5.24448,1906.8,1906.6,0.7829]
[1742262224234,5.24448,1906.8,1906.5,5.309]
[1742262224537,5.2442,1906.9,1906.5,12.209075]
[1742262224703,10.48901,1906.8,1906.5,6.963985]
[1742262224904,5.24443,1906.8,1906.5,6.963985]
[1742262225451,10.48903,1906.8,1906.5,6.963985]
[1742262225747,5.24443,1906.8,1906.5,6.963985]
[1742262226050,5.24421,1906.9,1906.5,12.209095]
[1742262226432,0.8299,1907.0,1906.5,12.209155]